[Event "4th Tata Steel India Blitz Open 2022"]
[Site "Kolkota"]
[Date "2022.12.04"]
[Round "18.5"]
[White "Gukesh D"]
[Black "So, Wesley"]
[Result "0-1"]
[ECO "B81"]
[WhiteElo "2725"]
[BlackElo "2760"]
[Annotator "TA"]
[PlyCount "59"]
[EventDate "2022.11.29"]
[EventType "tourn"]
[EventCountry "IND"]
[SourceTitle "playchess.com"]
[Source "ChessBase"]
[SourceQuality "1"]
[TimeControl "180+2"]

{[%evp 12,59,20,14,52,30,36,20,33,0,14,9,39,37,31,35,89,17,18,16,15,15,15,14,17,-54,-14,-11,10,-48,-10,-266,-265,-379,-347,-360,-286,-492,-31,-1713,-1326,-1761,-764,-1155,-1115,-1088,-1007,-29987,-29984,-29994]} 1. e4 {[%emt 0:00:01]} c5 {[%emt 0:00:04]} 2. Nf3 {[%emt 0:00:04]} d6 {[%emt 0:00:01]} 3. d4 {[%emt 0:00:01]} cxd4 {[%emt 0:00:01]} 4. Nxd4 {[%emt 0:00:01]} Nf6 {[%emt 0:00:01][%cal Bg8f6,Bf6d7,Bd7e5,Be5c4,Bc4a3][%mdl 32]} 5. Nc3 {[%emt 0:00:01]} a6 {[%emt 0:00:01]} 6. h3 {[%emt 0:00:02]} e6 {[%emt 0:00:09]} 7. g4 {[%emt 0:00:04]} Nfd7 {[%emt 0:00:02] B81: Sicilian Scheveningen: Keres Attack.} 8. g5 {[%emt 0:00:03]} b5 {[%emt 0:00:02]} 9. h4 {[%emt 0:00:08]} Bb7 {[%emt 0:00:09] The position is equal.} 10. Bg2 {[%emt 0:00:01]} Be7 {[%emt 0:00:09]} 11. Be3 {[%emt 0:00:04]} Ne5 $5 {[%emt 0:00:28][%mdl 4] [#] A promising side line.} 12. f4 $146 {[%emt 0:00:02]} ({Predecessor:} 12. Qh5 O-O 13. Qe2 b4 14. Nd1 a5 15. b3 Nbc6 16. Nxc6 Nxc6 17. Nb2 Qc7 18. Nd3 {0-1 (51) Puranik,A (2608)-Salem,A (2690) Chess.com INT 2022}) 12... Nc4 {[%emt 0:00:01][%csl LRb2,LRe3]} 13. Bc1 {[%emt 0:00:01]} Nc6 {[%emt 0:00:04]} (13... d5 $14) 14. b3 {[%emt 0:00:04]} (14. Nxc6 $16 Bxc6 15. b3) 14... Qa5 $11 {[%emt 0:00:23]} 15. Rh3 {[%emt 0:00:02]} Na3 {[%emt 0:00:25] ...Nxd4 is the strong threat.} 16. Nxc6 {[%emt 0:00:49]} Bxc6 {[%emt 0:00:00]} 17. Qd2 {[%emt 0:00:16]} Rc8 {[%emt 0:00:08]} 18. Kd1 {[%emt 0:00:34]} ({White should try} 18. Bb2 $1 $11) 18... h6 {[%emt 0:00:12] [#] Threatens to win with ...hxg5.} (18... b4 {simplifies} 19. Ne2 O-O 20. Bxa3 Qxa3 21. Rc1 d5) 19. Ne2 {[%emt 0:00:24]} b4 {[%emt 0:00:05]} (19... Qxd2+ {simplifies} 20. Bxd2 hxg5 21. fxg5 Bd7) 20. c3 {[%emt 0:00:10]} (20. c4 $11) 20... Qb6 {[%emt 0:00:19] aiming for ...Qf2.} (20... Qc5 $5 {[%cal Rc5f2]} 21. Qd3 (21. cxb4 $2 {too greedy.} Qf2 $19) 21... d5 22. cxb4 (22. Qxa6 $2 Ra8 $19) (22. Bxa3 bxa3 23. exd5 Rd8 $15) 22... Qf2 $15) 21. cxb4 $2 {[%emt 0:00:10][%mdl 8192]} (21. Qd4 $11 Qxd4+ 22. Nxd4) 21... Qf2 $1 $19 {[%emt 0:00:01]} 22. Ng3 {[%emt 0:00:14]} (22. Rg3 $142 Bb5 23. Bxa3 Bxe2+ 24. Qxe2 Qxg3 25. gxh6) 22... Qg1+ {[%emt 0:00:04]} 23. Bf1 {[%emt 0:00:08]} hxg5 {[%emt 0:00:19]} ({Don't blunder} 23... Bb5 $2 24. Bxa3 Bxf1 25. Rh1 Qxg3 26. Rxf1 $19) 24. fxg5 $2 {[%emt 0:00:01]} (24. Qe3 Qxe3 25. Bxe3) 24... Bxg5 $2 {[%emt 0:00:12]} 25. Qb2 $2 {[%emt 0:00:16][%mdl 8192]} (25. Qxg5 $15 Qd4+ 26. Qd2 Qxa1 27. Qb2) 25... Bf6 {[%emt 0:00:03]} ({Not} 25... Rxh4 26. Bxg5 Rxh3 27. Qxg7 $17) 26. Qxa3 {[%emt 0:00:04]} Qd4+ {[%emt 0:00:02]} (26... Bb5 $142 27. Be3 Qxe3) 27. Ke1 {[%emt 0:00:05]} Qxa1 {[%emt 0:00:02]} 28. Bxa6 {[%emt 0:00:05] [#]} Bb7 $1 {[%emt 0:00:06][%mdl 512]} 29. Qa4+ {[%emt 0:00:02]} (29. Ne2 Bxa6) 29... Ke7 {[%emt 0:00:04]} 30. Bxb7 {[%emt 0:00:07] Weighted Error Value: White=1.26/Black=1.00} 0-1